bitfinex-derivatives/quotes_BNBF0:USTF0_20250112
["timestamp","ask_amount","ask_price","bid_price","bid_amount"]
[1736654841438,1.07667182,696.02,695.11,0.998]
[1736654843441,1.07667182,696.01,695.11,0.998]
[1736654844742,1.07667182,696.0,695.11,0.998]
[1736654846642,1.07667182,695.93,695.11,0.998]
[1736654849247,1.07667182,695.95,695.11,0.998]
[1736654850049,1.07667182,695.97,695.11,0.998]
[1736654851143,1.07667182,695.95,695.11,0.998]
[1736654851950,1.07667182,695.94,695.11,0.998]
[1736654852652,1.07667182,695.92,695.11,0.998]
[1736654854751,1.07667182,695.95,695.11,0.998]
[1736654855851,1.07667182,695.96,695.11,0.998]
[1736654856952,1.07667182,695.99,695.11,0.998]
[1736654857947,1.07667182,695.98,695.11,0.998]
[1736654858854,0.28727789,696.19,695.11,0.998]
[1736654858855,1.07667182,695.99,695.11,0.998]
[1736654859756,1.07667182,696.0,695.11,0.998]
[1736654860851,1.07667182,696.05,695.11,0.998]
[1736654861757,1.07667182,696.06,695.11,0.998]
[1736654862953,0.28727789,696.19,695.11,0.998]
[1736654862954,1.07667182,696.07,695.11,0.998]
[1736654863555,1.07667182,696.06,695.11,0.998]
[1736654864859,1.07667182,696.07,695.11,0.998]
[1736654865754,1.07667182,696.06,695.11,0.998]
[1736654868263,1.07667182,696.05,695.11,0.998]
[1736654870165,1.07667182,696.04,695.11,0.998]
[1736654871266,1.07667182,695.99,695.11,0.998]
[1736654873666,1.07667182,695.98,695.11,0.998]
[1736654875462,1.07667182,695.99,695.11,0.998]
[1736654876369,1.07667182,695.98,695.11,0.998]
[1736654876869,1.07667182,696.11,695.11,0.998]
[1736654877669,0.28727789,696.19,695.11,0.998]
[1736654877670,1.07667182,696.1,695.11,0.998]
[1736654879469,1.07667182,696.11,695.11,0.998]
[1736654880570,1.07667182,696.12,695.11,0.998]
[1736654881773,1.07667182,695.96,695.11,0.998]
[1736654883578,1.07667182,695.95,695.11,0.998]
[1736654885975,1.07667182,695.94,695.11,0.998]
[1736654888076,1.07667182,695.96,695.11,0.998]
[1736654889176,1.07667182,695.97,695.11,0.998]
[1736654890284,0.28726551,696.22,695.11,0.998]
[1736654890285,1.07667182,696.04,695.11,0.998]
[1736654891287,1.07667182,696.07,695.11,0.998]
[1736654893787,1.07667182,696.08,695.11,0.998]
[1736654895986,1.07667182,696.09,695.11,0.998]
[1736654896594,1.07667182,696.1,695.11,0.998]
[1736654897795,1.07667182,696.09,695.11,0.998]
[1736654898690,1.07667182,696.08,695.11,0.998]
[1736654899596,1.07667182,696.04,695.11,0.998]
[1736654901091,1.07667182,696.02,695.11,0.998]
[1736654903696,1.07667182,695.98,695.11,0.998]
[1736654904495,0.28726551,696.22,695.11,0.998]
[1736654904496,1.07667182,696.0,695.11,0.998]
[1736654905289,1.07667182,695.97,695.11,0.998]
[1736654908193,1.07667182,695.99,695.11,0.998]
[1736654913204,1.07667182,695.98,695.11,0.998]
[1736654916706,1.07667182,696.0,695.11,0.998]
[1736654918405,1.07667182,695.99,695.11,0.998]
[1736654922308,1.07667182,695.98,695.11,0.998]
[1736654922914,1.07667182,695.97,695.11,0.998]
[1736654923916,1.07667182,695.95,695.11,0.998]
[1736654925918,1.07667182,695.92,695.11,0.998]
[1736654926713,1.07667182,695.93,695.11,0.998]
[1736654929323,0.28729853,696.14,695.11,0.998]
[1736654929324,1.07667182,695.98,695.11,0.998]
[1736654930424,1.07667182,696.0,695.11,0.998]
[1736654932219,1.07667182,695.99,695.11,0.998]
[1736654934027,1.07667182,695.98,695.11,0.998]
[1736654935025,0.28729853,696.14,695.11,0.998]
[1736654935026,1.07667182,695.99,695.11,0.998]
[1736654936226,1.07667182,695.97,695.11,0.998]
[1736654937021,0.28729853,696.14,695.11,0.998]
[1736654937022,1.07667182,695.98,695.11,0.998]
[1736654938928,1.07667182,695.96,695.11,0.998]
[1736654939932,1.07667182,695.98,695.11,0.998]
[1736654942834,1.07667182,695.96,695.11,0.998]
[1736654943637,1.07667182,695.97,695.11,0.998]
[1736654944532,1.07667182,695.96,695.11,0.998]
[1736654946730,1.07667182,695.95,695.11,0.998]
[1736654949136,1.07667182,695.93,695.11,0.998]
[1736654949937,1.07667182,695.94,695.11,0.998]
[1736654951938,1.07667182,695.93,695.11,0.998]
[1736654954137,1.07667182,695.95,695.11,0.998]
[1736654956639,1.07667182,695.98,695.11,0.998]
[1736654959439,1.07667182,696.01,695.11,0.998]
[1736654964744,1.07667182,696.0,695.11,0.998]
[1736654966645,1.07667182,695.98,695.11,0.998]
[1736654967545,1.07667182,695.99,695.11,0.998]
[1736654968447,1.07667182,696.0,695.11,0.998]
[1736654969549,1.07667182,695.95,695.11,0.998]
[1736654973654,1.07667182,695.96,695.11,0.998]
[1736654974454,1.07667182,696.0,695.11,0.998]
[1736654975253,1.07667182,695.99,695.11,0.998]
[1736654977057,1.07667182,695.98,695.11,0.998]
[1736654978058,1.07667182,695.97,695.11,0.998]
[1736654979052,1.07667182,696.04,695.11,0.998]
[1736654983060,1.07667182,696.05,695.11,0.998]
[1736654984266,1.07667182,696.03,695.11,0.998]
[1736654988068,1.07667182,696.06,695.11,0.998]
[1736654989263,1.07667182,696.01,695.11,0.998]
[1736654993070,1.07667182,696.0,695.11,0.998]
[1736654997569,1.07667182,695.92,695.11,0.998]
[1736654998570,1.07667182,695.93,695.11,0.998]
[1736654999768,0.28729853,696.14,695.11,0.998]
[1736654999769,1.07667182,695.97,695.11,0.998]
[1736655005276,1.07667182,695.95,695.11,0.998]
[1736655007782,1.07667182,695.98,695.11,0.998]
[1736655008784,0.28729853,696.14,695.11,0.998]
[1736655008785,1.07667182,695.95,695.11,0.998]
[1736655013686,1.07667182,695.94,695.11,0.998]
[1736655014689,1.07667182,695.93,695.11,0.998]
[1736655015887,1.07667182,695.94,695.11,0.998]
[1736655016982,1.07667182,695.93,695.11,0.998]
[1736655017993,1.07667182,696.02,695.11,0.998]
[1736655019389,1.07667182,696.03,695.11,0.998]
[1736655020595,1.07667182,696.04,695.11,0.998]
[1736655021592,1.07667182,696.03,695.11,0.998]
[1736655022395,1.07667182,696.05,695.11,0.998]
[1736655024298,1.07667182,695.98,695.11,0.998]
[1736655025304,1.07667182,696.0,695.11,0.998]
[1736655026199,1.07667182,695.98,695.11,0.998]
[1736655027105,0.28729853,696.14,695.11,0.998]
[1736655027106,1.07667182,695.99,695.11,0.998]
[1736655028005,1.07667182,696.0,695.11,0.998]
[1736655030005,1.07667182,696.01,695.11,0.998]
[1736655031106,1.07667182,696.0,695.11,0.998]
[1736655032007,1.07667182,696.01,695.11,0.998]
[1736655033606,1.07667182,695.99,695.11,0.998]
[1736655034413,1.07667182,696.02,695.11,0.998]
[1736655035312,1.07667182,696.0,695.11,0.998]
[1736655043219,0.2642298,695.99,695.11,0.998]
[1736655043419,1.07667182,696.0,695.11,0.998]
[1736655043619,0.26422975,695.99,695.11,0.998]
[1736655043920,1.07667182,695.94,695.11,0.998]
[1736655044719,1.07667182,695.93,695.11,0.998]
[1736655046621,1.07667182,696.12,695.11,0.998]
[1736655046622,1.07667182,695.91,695.11,0.998]
[1736655047724,1.07667182,695.92,695.11,0.998]
[1736655048616,1.07667182,695.91,695.11,0.998]
[1736655049726,1.07667182,695.9,695.11,0.998]
[1736655050826,1.07667182,695.89,695.11,0.998]
[1736655051527,1.07667182,695.86,695.11,0.998]
[1736655052724,1.07667182,695.85,695.11,0.998]
[1736655053628,1.07667182,695.84,695.11,0.998]
[1736655055425,1.07667182,695.83,695.11,0.998]
[1736655056436,1.07667182,695.81,695.11,0.998]
[1736655057337,1.07667182,695.8,695.11,0.998]
[1736655058437,1.07667182,695.81,695.11,0.998]
[1736655059332,1.07667182,695.84,695.11,0.998]
[1736655060638,0.89027926,696.08,695.11,0.998]
[1736655060639,1.07667182,695.85,695.11,0.998]
[1736655061642,1.07667182,695.83,695.11,0.998]
[1736655062841,1.07667182,695.81,695.11,0.998]
[1736655063742,1.07667182,695.83,695.11,0.998]
[1736655064640,1.07667182,695.84,695.11,0.998]
[1736655065843,1.07667182,695.83,695.11,0.998]
[1736655066745,1.07667182,696.04,695.11,0.998]
[1736655066746,1.07667182,695.84,695.11,0.998]
[1736655067541,0.28731916,696.09,695.11,0.998]
[1736655067542,1.07667182,695.85,695.11,0.998]
[1736655069948,1.07667182,695.82,695.11,0.998]
[1736655071054,1.07667182,695.81,695.11,0.998]
[1736655071956,1.07667182,695.83,695.11,0.998]
[1736655074155,0.28732742,696.07,695.11,0.998]
[1736655074156,1.07667182,695.81,695.11,0.998]
[1736655075056,1.07667182,695.8,695.11,0.998]
[1736655075958,1.07667182,695.81,695.11,0.998]
[1736655076658,1.07667182,695.86,695.11,0.998]
[1736655077457,1.07667182,695.85,695.11,0.998]
[1736655078159,1.07667182,695.84,695.11,0.998]
[1736655078958,1.07667182,695.85,695.11,0.998]
[1736655081059,1.36400749,696.05,695.11,0.998]
[1736655081060,1.07667182,695.91,695.11,0.998]
[1736655081858,0.28733567,696.05,695.11,0.998]
[1736655081859,1.07667182,695.9,695.11,0.998]
[1736655084955,1.07667182,695.88,695.11,0.998]
[1736655086057,1.07667182,695.87,695.11,0.998]
[1736655087460,0.28733567,696.05,695.11,0.998]
[1736655087461,1.07667182,695.86,695.11,0.998]
[1736655088462,1.07667182,695.87,695.11,0.998]
[1736655091866,0.28733567,696.05,695.11,0.998]
[1736655091867,1.07667182,695.78,695.11,0.998]
[1736655094367,1.07667182,695.84,695.11,0.998]
[1736655097067,1.07667182,695.82,695.11,0.998]
[1736655098671,1.07667182,695.83,695.11,0.998]
[1736655103072,1.07667182,695.82,695.11,0.998]
[1736655103873,1.07667182,695.77,695.11,0.998]
[1736655106469,1.07667182,695.76,695.11,0.998]
[1736655107276,1.07667182,695.77,695.11,0.998]
[1736655112279,1.07667182,695.76,695.11,0.998]
[1736655117482,1.07667182,695.78,695.11,0.998]
[1736655118582,1.07667182,695.77,695.11,0.998]
[1736655120579,1.07667182,695.76,695.11,0.998]
[1736655125389,1.07667182,695.8,695.11,0.998]
[1736655127592,0.28735219,696.01,695.11,0.998]
[1736655127593,1.07667182,695.82,695.11,0.998]
[1736655129492,1.07667182,695.88,695.11,0.998]
[1736655130695,1.07667182,695.9,695.11,0.998]
[1736655133400,1.07667182,695.91,695.11,0.998]
[1736655135696,0.28735219,696.01,695.11,0.998]
[1736655135697,1.07667182,695.9,695.11,0.998]
[1736655137698,0.28735219,696.01,695.11,0.998]
[1736655137699,1.07667182,695.93,695.11,0.998]
[1736655138499,1.07667182,695.94,695.11,0.998]
[1736655139498,1.07667182,695.9,695.11,0.998]
[1736655140498,1.07667182,695.87,695.11,0.998]
[1736655146103,0.28735219,696.01,695.11,0.998]
[1736655146104,1.07667182,695.86,695.11,0.998]
[1736655147107,1.07667182,695.82,695.11,0.998]
[1736655149106,1.07667182,695.83,695.11,0.998]
[1736655150109,1.07667182,695.82,695.11,0.998]
[1736655151008,1.07667182,695.81,695.11,0.998]
[1736655152313,1.07667182,695.84,695.11,0.998]
[1736655154414,0.28735219,696.01,695.11,0.998]
[1736655154415,1.07667182,695.88,695.11,0.998]
[1736655158115,1.07667182,695.87,695.11,0.998]
[1736655160410,1.07667182,695.88,695.11,0.998]
[1736655162117,1.07667182,695.85,695.11,0.998]
[1736655163718,1.07667182,695.8,695.11,0.998]
[1736655165515,1.07667182,695.79,695.11,0.998]
[1736655166818,1.07667182,695.82,695.11,0.998]
[1736655168615,1.07667182,695.81,695.11,0.998]
[1736655172321,1.07667182,695.8,695.11,0.998]
[1736655173124,1.07667182,695.81,695.11,0.998]
[1736655173919,1.07667182,695.8,695.11,0.998]
[1736655175222,1.07667182,695.79,695.11,0.998]
[1736655176027,1.07667182,695.76,695.11,0.998]
[1736655176824,1.07667182,695.77,695.11,0.998]
[1736655179320,1.07667182,695.76,695.11,0.998]
[1736655180126,1.07667182,695.77,695.11,0.998]
[1736655182327,1.07667182,695.76,695.11,0.998]
[1736655182930,1.07667182,695.77,695.11,0.998]
[1736655186729,1.07667182,695.76,695.11,0.998]
[1736655189931,1.07667182,695.77,695.11,0.998]
[1736655191130,1.07667182,695.78,695.11,0.998]
[1736655193129,0.89056309,696.15,695.11,0.998]
[1736655193130,1.07667182,695.77,695.11,0.998]
[1736655195035,1.07667182,695.79,695.11,0.998]
[1736655196739,1.07667182,695.81,695.11,0.998]
[1736655199846,1.07667182,695.85,695.11,0.998]
[1736655206039,1.07667182,695.92,695.11,0.998]
[1736655207041,1.07667182,695.91,695.11,0.998]
[1736655208546,1.07667182,695.9,695.11,0.998]
[1736655209446,1.07667182,695.89,695.11,0.998]
[1736655214451,1.07667182,695.9,695.11,0.998]
[1736655216151,1.07667182,695.82,695.11,0.998]
[1736655218455,0.28729853,696.14,695.11,0.998]
[1736655218456,1.07667182,695.92,695.11,0.998]
[1736655223158,1.07667182,695.93,695.11,0.998]
[1736655223960,1.07667182,695.91,695.11,0.998]
[1736655226263,0.28729853,696.14,695.11,0.998]
[1736655226264,1.07667182,695.89,695.11,0.998]
[1736655227463,1.07667182,695.86,695.11,0.998]
[1736655228163,1.07667182,695.82,695.11,0.998]
[1736655231064,1.07667182,695.81,695.11,0.998]
[1736655232868,1.07667182,695.78,695.11,0.998]
[1736655236472,1.07667182,695.77,695.11,0.998]
[1736655237576,1.07667182,695.79,695.11,0.998]
[1736655240676,1.07667182,695.78,695.11,0.998]
[1736655243474,1.07667182,695.77,695.11,0.998]
[1736655244585,1.07667182,695.78,695.11,0.998]
[1736655245282,1.07667182,695.77,695.11,0.998]
[1736655246081,1.07667182,695.78,695.11,0.998]
[1736655246885,1.07667182,695.79,695.11,0.998]
[1736655248687,1.07667182,695.78,695.11,0.998]
[1736655251790,1.07667182,695.79,695.11,0.998]
[1736655252791,1.07667182,695.78,695.11,0.998]
[1736655253491,1.07667182,695.8,695.11,0.998]
[1736655256295,1.07667182,695.79,695.11,0.998]
[1736655258899,1.07667182,695.77,695.11,0.998]
[1736655264702,1.07667182,695.76,695.11,0.998]
[1736655267206,0.89058268,696.11,695.11,0.998]
[1736655267207,1.07667182,695.77,695.11,0.998]
[1736655268002,1.07667182,695.75,695.11,0.998]
[1736655269006,1.07667182,695.76,695.11,0.998]
[1736655269802,1.07667182,695.75,695.11,0.998]
[1736655270705,1.07667182,695.94,695.11,0.998]
[1736655270706,1.07667182,695.76,695.11,0.998]
[1736655273409,1.07667182,695.74,695.11,0.998]
[1736655274408,1.07667182,695.7,695.11,0.998]
[1736655275410,1.50138058,696.06,695.11,0.998]
[1736655275411,1.07667182,695.75,695.11,0.998]
[1736655276209,1.07667182,695.76,695.11,0.998]
[1736655277311,1.07667182,695.72,695.11,0.998]
[1736655278112,1.07667182,695.74,695.11,0.998]
[1736655279011,1.07667182,695.75,695.11,0.998]
[1736655280515,1.07667182,695.77,695.11,0.998]
[1736655281617,0.89058268,696.03,695.11,0.998]
[1736655281618,1.07667182,695.78,695.11,0.998]
[1736655283211,1.07667182,695.99,695.11,0.998]
[1736655283212,1.07667182,695.79,695.11,0.998]
[1736655284015,1.07667182,695.77,695.11,0.998]
[1736655285014,1.07667182,695.78,695.11,0.998]
[1736655286018,1.07667182,695.8,695.11,0.998]
[1736655286420,0.26430012,695.79,695.11,0.998]
[1736655286721,2.57812258,695.98,695.11,0.998]
[1736655286722,1.07667182,695.78,695.11,0.998]
[1736655288519,1.07667182,695.79,695.11,0.998]
[1736655289819,1.07667182,695.8,695.11,0.998]
[1736655294523,1.07667182,695.79,695.11,0.998]
[1736655295621,1.07667182,695.97,695.11,0.998]
[1736655295622,1.07667182,695.78,695.11,0.998]
[1736655299828,1.07667182,695.76,695.11,0.998]
[1736655300931,1.07667182,695.77,695.11,0.998]
[1736655301530,1.07667182,695.76,695.11,0.998]
[1736655302533,1.07667182,695.75,695.11,0.998]
[1736655303532,0.88913006,695.97,695.11,0.998]
[1736655303533,1.07667182,695.74,695.11,0.998]
[1736655305331,1.07667182,695.73,695.11,0.998]
[1736655306536,1.07667182,695.71,695.11,0.998]
[1736655307234,0.88913006,695.97,695.11,0.998]
[1736655307235,1.07667182,695.73,695.11,0.998]
[1736655308027,1.07667182,695.68,695.11,0.998]
[1736655310037,1.07667182,695.71,695.11,0.998]
[1736655311741,1.07667182,695.72,695.11,0.998]
[1736655312741,1.07667182,695.68,695.11,0.998]
[1736655314241,1.07667182,695.67,695.11,0.998]
[1736655315640,1.07667182,695.73,695.11,0.998]
[1736655316344,1.07667182,695.74,695.11,0.998]
[1736655317339,1.07667182,695.73,695.11,0.998]
[1736655317939,1.07667182,695.71,695.11,0.998]
[1736655319539,1.50156413,695.91,695.11,0.998]
[1736655319742,0.26432317,695.9,695.11,0.998]
[1736655320536,0.28740174,695.89,695.11,0.998]
[1736655321343,1.07766396,695.72,695.11,0.998]
[1736655321740,1.07766396,695.73,695.11,0.998]
[1736655323347,1.07766396,695.72,695.11,0.998]
[1736655325247,0.28740174,695.89,695.11,0.998]
[1736655325248,1.07766396,695.68,695.11,0.998]
[1736655328344,1.07766396,695.64,695.11,0.998]
[1736655328943,1.07766396,695.63,695.11,0.998]
[1736655330849,1.07766396,695.62,695.11,0.998]
[1736655331645,1.07766396,695.81,695.11,0.998]
[1736655331646,1.07766396,695.63,695.11,0.998]
[1736655333847,1.07766396,695.65,695.11,0.998]
[1736655337752,1.07766396,695.64,695.11,0.998]
[1736655338554,1.07766396,695.63,695.11,0.998]
[1736655339756,1.07766396,695.64,695.11,0.998]
[1736655342956,1.07766396,695.62,695.11,0.998]
[1736655343957,1.07766396,695.64,695.11,0.998]
[1736655345152,1.07766396,695.63,695.11,0.998]
[1736655345857,1.07766396,695.62,695.11,0.998]
[1736655347861,1.07766396,695.59,695.11,0.998]
[1736655348960,0.88970089,695.88,695.11,0.998]
[1736655348961,1.07766396,695.58,695.11,0.998]
[1736655349963,1.07766396,695.59,695.11,0.998]
[1736655352159,1.07766396,695.58,695.11,0.998]
[1736655357869,1.07766396,695.61,695.11,0.998]
[1736655358772,1.07766396,695.6,695.11,0.998]
[1736655359775,1.07766396,695.59,695.11,0.998]
[1736655360877,1.07766396,695.61,695.11,0.998]
[1736655361771,1.07766396,695.6,695.11,0.998]
[1736655362675,1.07766396,695.63,695.11,0.998]
[1736655364372,1.07766396,695.64,695.11,0.998]
[1736655366178,0.28740174,695.89,695.11,0.998]
[1736655366179,1.07766396,695.63,695.11,0.998]
[1736655367081,1.07766396,695.61,695.11,0.998]
[1736655369280,1.07766396,695.6,695.11,0.998]
[1736655371186,1.07766396,695.61,695.11,0.998]
[1736655372187,1.07766396,695.6,695.11,0.998]
[1736655373189,1.07766396,695.57,695.11,0.998]
[1736655373782,1.07766396,695.56,695.11,0.998]
[1736655375888,1.07766396,695.55,695.11,0.998]
[1736655377991,1.07766396,695.56,695.11,0.998]
[1736655378989,1.07766396,695.55,695.11,0.998]
[1736655380487,1.07766396,695.74,695.11,0.998]
[1736655380488,1.07766396,695.56,695.11,0.998]
[1736655381389,1.07766396,695.82,695.11,0.998]
[1736655381390,1.07766396,695.55,695.11,0.998]
[1736655382190,1.07766396,695.56,695.11,0.998]
[1736655382897,1.07766396,695.55,695.11,0.998]
[1736655384989,1.07766396,695.53,695.11,0.998]
[1736655385791,1.07766396,695.54,695.11,0.998]
[1736655389996,1.07766396,695.55,695.11,0.998]
[1736655391490,1.07766396,695.54,695.11,0.998]
[1736655392797,1.07766396,695.61,695.11,0.998]
[1736655393900,1.07766396,695.62,695.11,0.998]
[1736655396703,1.07766396,695.63,695.11,0.998]
[1736655399001,0.28741,695.87,695.11,0.998]
[1736655399002,1.07766396,695.61,695.11,0.998]
[1736655399604,0.28741,695.87,695.11,0.998]
[1736655399605,1.07766396,695.6,695.11,0.998]
[1736655401906,1.07766396,695.53,695.11,0.998]
[1736655403010,1.07766396,695.55,695.11,0.998]
[1736655403710,1.07766396,695.54,695.11,0.998]
[1736655405911,1.07766396,695.55,695.11,0.998]
[1736655407112,1.07766396,695.53,695.11,0.998]
[1736655408013,1.07766396,695.52,695.11,0.998]
[1736655410213,1.07766396,695.51,695.11,0.998]
[1736655411011,1.07766396,695.52,695.11,0.998]
[1736655415314,1.07766396,695.53,695.11,0.998]
[1736655417618,1.07766396,695.52,695.11,0.998]
[1736655419619,0.89087729,695.8,695.11,0.998]
[1736655419620,1.07766396,695.53,695.11,0.998]
[1736655422523,1.07766396,695.54,695.11,0.998]
[1736655423821,1.07766396,695.58,695.11,0.998]
[1736655424623,1.07766396,695.59,695.11,0.998]
[1736655425625,1.07766396,695.66,695.11,0.998]
[1736655428326,1.07766396,695.67,695.11,0.998]
[1736655429127,1.07766396,695.68,695.11,0.998]
[1736655433630,1.07766396,695.66,695.11,0.998]
[1736655435426,1.07766396,695.58,695.11,0.998]
[1736655436227,1.07766396,695.77,695.11,0.998]
[1736655436228,1.07766396,695.59,695.11,0.998]
[1736655438434,1.07766396,695.57,695.11,0.998]
[1736655439532,1.07766396,695.58,695.11,0.998]
[1736655443431,1.07766396,695.6,695.11,0.998]
[1736655445136,1.07766396,695.61,695.11,0.998]
[1736655446034,1.07766396,695.59,695.11,0.998]
[1736655446735,1.07766396,695.58,695.11,0.998]
[1736655447630,1.07766396,695.61,695.11,0.998]
[1736655449030,1.07766396,695.6,695.11,0.998]
[1736655452333,1.07766396,695.7,695.11,0.998]
[1736655453337,1.07766396,695.69,695.11,0.998]
[1736655454240,1.07766396,695.7,695.11,0.998]
[1736655455041,1.07766396,695.69,695.11,0.998]
[1736655456040,1.07766396,695.7,695.11,0.998]
[1736655456936,1.07766396,695.69,695.11,0.998]
[1736655457935,1.07766396,695.68,695.11,0.998]
[1736655461742,1.07766396,695.61,695.11,0.998]
[1736655462847,1.07766396,695.64,695.11,0.998]
[1736655464748,1.07766396,695.62,695.11,0.998]
[1736655466652,1.07766396,695.59,695.11,0.998]
[1736655468752,0.28743478,695.81,695.11,0.998]
[1736655468753,1.07766396,695.58,695.11,0.998]
[1736655470350,1.07766396,695.57,695.11,0.998]
[1736655473554,1.07766396,695.54,695.11,0.998]
[1736655476960,1.07766396,695.53,695.11,0.998]
[1736655482563,1.07766396,695.52,695.11,0.998]
[1736655483562,1.07766396,695.53,695.11,0.998]
[1736655484467,1.07766396,695.52,695.11,0.998]
[1736655486769,1.07766396,695.58,695.11,0.998]
[1736655490666,1.07766396,695.61,695.11,0.998]
[1736655491466,1.07766396,695.6,695.11,0.998]
[1736655495275,1.07766396,695.59,695.11,0.998]
[1736655496272,1.07766396,695.54,695.11,0.998]
[1736655496875,1.07766396,695.55,695.11,0.998]
[1736655497878,1.07766396,695.54,695.11,0.998]
[1736655499382,1.07766396,695.55,695.11,0.998]
[1736655501782,1.07766396,695.54,695.11,0.998]
[1736655502579,1.07766396,695.55,695.11,0.998]
[1736655505580,1.07766396,695.57,695.11,0.998]
[1736655507582,1.07766396,695.56,695.11,0.998]
[1736655509388,1.07766396,695.59,695.11,0.998]
[1736655510289,1.07766396,695.58,695.11,0.998]
[1736655511388,1.07766396,695.59,695.11,0.998]
[1736655512183,1.07766396,695.6,695.11,0.998]
[1736655513289,1.07766396,695.58,695.11,0.998]
[1736655513989,0.28743478,695.81,695.11,0.998]
[1736655513990,1.07766396,695.6,695.11,0.998]
[1736655519794,1.07766396,695.61,695.11,0.998]
[1736655523597,1.07766396,695.66,695.11,0.998]
[1736655528397,1.07766396,695.67,695.11,0.998]
[1736655529398,1.07766396,695.68,695.11,0.998]
[1736655532393,1.07766396,695.67,695.11,0.998]
[1736655533599,1.07766396,695.63,695.11,0.998]
[1736655534996,1.07766396,695.67,695.11,0.998]
[1736655535801,0.28743478,695.81,695.11,0.998]
[1736655535802,1.07766396,695.65,695.11,0.998]
[1736655537806,1.07766396,695.64,695.11,0.998]
[1736655538904,1.07766396,695.68,695.11,0.998]
[1736655539905,1.07766396,695.71,695.11,0.998]
[1736655541811,0.28743478,695.81,695.11,0.998]
[1736655551415,1.07766396,695.79,695.11,0.998]
[1736655553513,1.36509874,695.81,695.11,0.998]
[1736655554822,0.28743478,695.81,695.11,0.998]
[1736655597345,1.36509874,695.81,695.11,0.998]
[1736655597947,1.35694308,695.81,695.11,0.998]
[1736655598344,0.27927912,695.81,695.11,0.998]
[1736655635975,1.07766396,695.8,695.11,0.998]
[1736655637671,1.35694308,695.81,695.11,0.998]
[1736655638778,0.27927912,695.81,695.11,0.998]
[1736655657694,1.07766396,695.97,695.11,0.998]
[1736655658092,1.07766396,696.0,695.11,0.998]
[1736655659900,1.07766396,695.99,695.11,0.998]
[1736655660897,1.07766396,696.0,695.11,0.998]
[1736655662099,1.07766396,696.27,695.11,0.998]
[1736655662100,1.07766396,696.01,695.11,0.998]
[1736655664002,1.07766396,696.04,695.11,0.998]
[1736655666905,1.07766396,696.05,695.11,0.998]
[1736655667705,1.07766396,696.04,695.11,0.998]
[1736655668906,1.07766396,696.05,695.11,0.998]
[1736655669500,1.07766396,696.06,695.11,0.998]
[1736655670307,1.07766396,696.05,695.11,0.998]
[1736655673202,1.36492122,696.24,695.11,0.998]
[1736655673203,1.07766396,696.09,695.11,0.998]
[1736655674413,1.07766396,696.06,695.11,0.998]
[1736655676009,1.07766396,696.05,695.11,0.998]
[1736655678314,1.07766396,696.04,695.11,0.998]
[1736655679417,1.07766396,696.02,695.11,0.998]
[1736655680317,1.07766396,696.05,695.11,0.998]
[1736655681211,1.07766396,696.04,695.11,0.998]
[1736655683520,1.07766396,696.14,695.11,0.998]
[1736655685423,1.07766396,696.13,695.11,0.998]
[1736655686524,1.07766396,696.14,695.11,0.998]
[1736655687526,1.07766396,696.13,695.11,0.998]
[1736655688321,0.28725726,696.24,695.11,0.998]
[1736655688322,1.07766396,696.19,695.11,0.998]
[1736655690524,1.07766396,696.2,695.11,0.998]
[1736655694926,1.07766396,696.18,695.11,0.998]
[1736655697424,1.07766396,696.14,695.11,0.998]